bitfinex-derivatives/quotes_SOLF0:USTF0_20251207
["timestamp","ask_amount","ask_price","bid_price","bid_amount"]
[1765069399781,6.7976,132.38,132.34,17.24384321]
[1765069399980,110.13864544,132.37,132.32,17.24384321]
[1765069400184,64.42,132.36,132.32,3.2]
[1765069400778,0.05424505,132.35,132.33,0.05354609]
[1765069401278,64.42,132.34,132.33,0.05354609]
[1765069412677,64.42,132.34,132.33,3.25354609]
[1765069415289,64.42,132.34,132.33,0.05354609]
[1765069422690,64.42,132.34,132.28,3.2]
[1765069422691,4.39284544,132.33,132.28,3.2]
[1765069423596,0.05346928,132.32,132.29,3.24892095]
[1765069423795,0.05346928,132.32,132.29,0.04892095]
[1765069424382,0.05346928,132.32,132.29,3.24892095]
[1765069425090,0.05346928,132.32,132.29,0.04892095]
[1765069426597,0.05346928,132.32,132.29,3.24892095]
[1765069440604,105.7338,132.39,132.29,3.24892095]
[1765069440808,2.81441012,132.36,132.3,3.27]
[1765069441609,0.05121056,132.34,132.32,0.05330628]
[1765069441910,64.49121056,132.34,132.33,3.27]
[1765069446094,67.30562068,132.34,132.33,3.27]
[1765069446500,64.49121056,132.34,132.33,3.27]
[1765069455116,64.49121056,132.34,132.32,3.32330628]
[1765069471124,2.81441012,132.33,132.32,0.05330628]
[1765069473629,2.81441012,132.33,132.29,3.11]
[1765069473828,2.81441012,132.3,132.29,3.11]
[1765069474033,67.23441012,132.3,132.29,3.11]
[1765069482233,67.23441012,132.3,132.29,17.15384321]
[1765069484840,64.42,132.3,132.29,17.15384321]
[1765069488046,2.81441012,132.36,132.3,3.31]
[1765069488250,2.81441012,132.36,132.33,3.31]
[1765069488850,2.86391083,132.36,132.33,3.36794728]
[1765069490651,2.86391083,132.36,132.34,17.39468537]
[1765069491445,2.86391083,132.36,132.35,3.31]
[1765069492554,0.04950071,132.36,132.35,3.31]
[1765069495643,64.44,132.37,132.35,3.31]
[1765069495644,61.96752005,132.37,132.35,3.31]
[1765069496747,62.02558401,132.37,132.35,3.31]
[1765069510565,49.43598401,132.37,132.36,3.28]
[1765069510752,64.4,132.41,132.36,3.28]
[1765069512064,0.05130943,132.4,132.38,3.28]
[1765069513559,0.05130943,132.4,132.38,10.077]
[1765069513868,0.05130943,132.4,132.39,3.28]
[1765069524478,0.00130943,132.4,132.39,3.28]
[1765069524682,64.38,132.46,132.41,3.09]
[1765069525387,64.38,132.46,132.42,3.09]
[1765069525687,0.04196985,132.45,132.44,3.09]
[1765069544697,64.38,132.51,132.47,3.09]
[1765069545695,64.38,132.51,132.48,3.1414865]
[1765069557001,2.80592069,132.5,132.48,0.0514865]
[1765069562706,2.80592069,132.5,132.43,9.8745]
[1765069562913,2.80592069,132.48,132.43,9.8745]
[1765069563110,2.80592069,132.46,132.43,6.7945]
[1765069563413,2.80592069,132.46,132.42,3.08]
[1765069563815,0.0514865,132.45,132.43,0.04964404]
[1765069571514,2.80592069,132.44,132.43,0.04964404]
[1765069571721,2.80592069,132.44,132.39,3.08]
[1765069572017,2.80592069,132.42,132.39,3.08]
[1765069572720,2.85911584,132.42,132.39,3.12818812]
[1765069577910,2.80592069,132.4,132.39,0.04818812]
[1765069578713,0.05319515,132.42,132.39,3.39818812]
[1765069581825,108.56451584,132.42,132.39,0.04818812]
[1765069582927,64.38,132.41,132.39,0.04818812]
[1765069583534,71.1761,132.41,132.39,0.04818812]
[1765069589038,64.38,132.41,132.39,0.04818812]
[1765069592542,2.80592069,132.4,132.39,0.04818812]
[1765069600039,2.80592069,132.4,132.34,3.35]
[1765069600341,2.80592069,132.38,132.34,3.35]
[1765069600537,64.38,132.37,132.34,3.35]
[1765069601037,64.42789688,132.37,132.34,3.39839455]
[1765069605547,2.80592069,132.36,132.34,3.39839455]
[1765069608858,2.80592069,132.36,132.34,0.04839455]
[1765069614351,4.39599021,132.36,132.34,0.04839455]
[1765069620350,105.7785,132.33,132.28,3.24]
[1765069620549,68.79599021,132.32,132.26,3.24]
[1765069621352,0.05584129,132.3,132.28,3.28946742]
[1765069624858,68.83599021,132.36,132.29,3.24]
[1765069625756,0.05064964,132.34,132.31,0.05472927]
[1765069626064,0.05064964,132.34,132.32,3.24]
[1765069644278,75.61189021,132.41,132.33,3.28]
[1765069645272,0.05087638,132.38,132.36,3.32860334]
[1765069646571,0.05087638,132.38,132.36,0.04860334]
[1765069648370,4.39599021,132.37,132.32,3.28]
[1765069649364,4.39599021,132.37,132.34,3.28]
[1765069649570,4.45239932,132.37,132.34,3.28]
[1765069651569,11.25049932,132.37,132.33,0.056083]
[1765069651877,4.39599021,132.35,132.33,0.056083]
[1765069652068,64.44,132.36,132.33,0.056083]
[1765069657180,4.39599021,132.35,132.33,0.056083]
[1765069659679,11.19519021,132.35,132.33,0.056083]
[1765069659881,4.39599021,132.35,132.3,3.28]
[1765069660782,0.04998818,132.34,132.31,3.33464656]
[1765069661581,6.84958818,132.34,132.31,3.33464656]
[1765069665487,6.84958818,132.34,132.31,0.05464656]
[1765069673993,6.84958818,132.34,132.31,3.37464656]
[1765069677088,2.8135324,132.33,132.31,0.05464656]
[1765069677395,64.44,132.32,132.31,0.05464656]
[1765069681099,64.44,132.32,132.31,3.37464656]
[1765069681598,0.04998818,132.34,132.32,3.32]
[1765069682698,64.44,132.37,132.32,4.84]
[1765069682898,64.44,132.37,132.33,3.32]
[1765069683590,0.04834595,132.36,132.35,3.32]
[1765069691014,2.8135324,132.4,132.35,3.32]
[1765069692104,0.05014842,132.39,132.35,3.32]
[1765069708111,2.8135324,132.38,132.35,3.32]
[1765069708316,2.8135324,132.36,132.34,0.05346811]
[1765069708614,2.86395912,132.36,132.34,0.05346811]
[1765069710308,0.05042672,132.36,132.34,3.18346811]
[1765069720520,2.86395912,132.36,132.34,0.05346811]
[1765069721918,2.86395912,132.36,132.34,3.18346811]
[1765069726624,0.05042672,132.36,132.34,3.18346811]
[1765069741236,0.05042672,132.36,132.34,0.05346811]
[1765069744242,0.05042672,132.36,132.34,3.13346811]
[1765069777171,0.05042672,132.36,132.34,0.05346811]
[1765069778577,6.84912672,132.36,132.34,0.05346811]
[1765069779567,71.24912672,132.36,132.34,0.05346811]
[1765069794680,105.7692,132.34,132.3,3.05]
[1765069794880,64.42,132.33,132.3,3.05]
[1765069795278,105.748,132.37,132.3,3.05]
[1765069795482,64.42,132.36,132.3,3.05]
[1765069795777,0.05748032,132.34,132.33,3.05]
[1765069796378,64.47748032,132.34,132.33,3.05]
[1765069801774,7.05132162,132.42,132.32,0.05294042]
[1765069801775,112.75182162,132.43,132.34,3.05]
[1765069802082,2.81288147,132.4,132.34,3.05]
[1765069802379,2.81288147,132.4,132.35,3.05]
[1765069802880,0.0494722,132.39,132.37,3.05]
[1765069803082,64.42,132.38,132.37,3.05]
[1765069805380,64.42,132.38,132.37,17.13468537]
[1765069805783,0.0494722,132.39,132.38,3.05]
[1765069812489,64.42,132.42,132.38,3.05]
[1765069813387,64.42,132.42,132.36,6.798]
[1765069813388,0.04409008,132.41,132.4,3.05]
[1765069825396,6.7924,132.48,132.41,3.16]
[1765069825600,2.81288147,132.47,132.41,3.16]
[1765069826298,2.81288147,132.47,132.4,6.7961]
[1765069826299,2.81288147,132.47,132.44,3.16]
[1765069828601,64.38,132.48,132.44,3.16]
[1765069846226,64.38,132.48,132.45,3.16]
[1765069846927,64.38,132.48,132.46,3.16]
[1765069847127,64.38,132.48,132.46,3.21617132]
[1765069860340,4.3855205,132.52,132.46,3.21617132]
[1765069866045,11.1759205,132.52,132.46,0.05617132]
[1765069867648,4.3855205,132.48,132.46,0.05617132]
[1765069877555,110.0441205,132.48,132.43,9.33580676]
[1765069877762,4.3855205,132.46,132.41,12.59580676]
[1765069878057,64.36,132.45,132.41,12.59580676]
[1765069878661,0.0514411,132.44,132.42,0.05137294]
[1765069885167,0.0514411,132.44,132.42,3.31137294]
[1765069885575,0.0514411,132.44,132.42,0.05137294]
[1765069907874,0.0514411,132.44,132.42,3.42137294]
[1765069916482,2.86108242,132.44,132.42,3.42137294]
[1765069919666,9.65558242,132.44,132.42,3.42137294]
[1765069919871,9.65558242,132.44,132.42,0.05137294]
[1765069922477,2.86108242,132.44,132.42,3.22137294]
[1765069923783,0.0514411,132.44,132.42,3.22137294]
[1765069935690,64.36,132.45,132.42,3.22137294]
[1765069936500,9.60204132,132.48,132.43,3.17]
[1765069936703,73.96204132,132.48,132.43,3.17]
[1765069938101,73.96204132,132.48,132.44,3.12]
[1765069938305,73.96204132,132.48,132.46,3.12]
[1765069938605,64.36,132.48,132.46,3.12]
[1765069946214,2.80964132,132.5,132.46,3.12]
[1765069946412,2.80964132,132.5,132.44,122.57802669]
[1765069946413,2.80964132,132.5,132.48,3.12]
[1765069946707,67.16964132,132.52,132.48,3.12]
[1765069953316,64.36,132.52,132.48,3.12]
[1765069954605,64.36,132.52,132.49,3.12]
[1765069958212,2.80964132,132.54,132.49,3.12]
[1765069958508,2.80964132,132.54,132.51,3.12]
[1765069978332,6.7889,132.55,132.51,3.12]
[1765069980327,68.72305433,132.56,132.51,3.12]
[1765069981435,75.51145433,132.56,132.51,3.12]
[1765069985841,109.93955433,132.61,132.51,3.12]
[1765069986142,109.93955433,132.61,132.56,3.29]
[1765069986343,6.7869,132.59,132.56,3.29]
[1765069986644,71.1069,132.59,132.56,3.29]
[1765069992852,64.32,132.59,132.56,3.29]
[1765069993353,64.32,132.59,132.55,3.33983954]
[1765069994757,4.38305433,132.57,132.55,0.04983954]
[1765069995055,64.3,132.56,132.55,0.04983954]
[1765070004949,64.3,132.56,132.55,3.38983954]
[1765070009371,71.0867,132.59,132.55,3.38983954]
[1765070010260,64.3,132.59,132.55,3.38983954]
[1765070011663,4.38305433,132.61,132.55,3.38983954]
[1765070011861,4.38305433,132.61,132.57,3.39030065]
[1765070017365,4.38305433,132.61,132.57,0.05030065]
[1765070018771,4.38305433,132.59,132.57,0.05030065]
[1765070019068,64.28,132.58,132.57,0.05030065]
[1765070037687,11.17005433,132.59,132.57,0.05030065]
[1765070037886,64.3,132.58,132.57,0.05030065]
[1765070040394,67.1035591,132.58,132.57,0.05030065]
[1765070042797,172.6854591,132.58,132.52,17.15468537]
[1765070042991,2.8035591,132.54,132.5,17.15468537]
[1765070043196,2.8035591,132.52,132.49,3.07]
[1765070043987,2.85787518,132.52,132.49,3.12768891]
[1765070044798,0.05431608,132.52,132.49,3.12768891]
[1765070048096,0.05431608,132.52,132.5,3.07]
[1765070052099,2.85787518,132.52,132.49,14.14237428]
[1765070052404,2.8035591,132.5,132.49,3.12768891]
[1765070065312,2.85787518,132.52,132.49,3.12768891]
[1765070073121,0.05431608,132.52,132.49,3.12768891]
[1765070077227,0.05431608,132.52,132.5,3.3]
[1765070084135,0.05431608,132.52,132.51,3.3]
[1765070101849,0.00431608,132.52,132.51,3.3]
[1765070105047,0.00431608,132.52,132.51,17.38468537]
[1765070113256,0.00431608,132.52,132.51,3.3]
[1765070116162,0.00431608,132.52,132.51,17.38468537]
[1765070125969,0.00431608,132.52,132.51,3.3]
[1765070126471,0.00431608,132.52,132.51,17.38468537]
[1765070152501,0.00431608,132.52,132.51,17.32528208]
[1765070152698,0.00431608,132.52,132.51,3.3]
[1765070153193,71.0877,132.57,132.51,3.3]
[1765070153394,71.0877,132.57,132.52,3.35]
[1765070153697,71.0877,132.57,132.53,3.35]
[1765070153899,64.3,132.57,132.53,3.35]
[1765070154199,64.3,132.57,132.54,3.39808704]
[1765070161900,109.94058955,132.61,132.55,3.35]
[1765070161901,6.7856,132.61,132.55,3.35]
[1765070162102,6.7856,132.61,132.58,3.35]
[1765070162405,9.58815455,132.61,132.58,3.35]
[1765070163902,9.58815455,132.61,132.57,0.05601208]
[1765070164106,2.80255455,132.59,132.57,0.05601208]
[1765070167010,2.80255455,132.59,132.57,3.40601208]
[1765070169710,169.8307,132.62,132.57,3.40601208]
[1765070169711,64.28,132.62,132.57,3.40601208]
[1765070169913,67.08255455,132.62,132.57,3.40601208]
[1765070172611,64.28,132.62,132.57,3.40601208]
[1765070172804,67.08255455,132.62,132.57,3.40601208]
[1765070183915,64.28,132.62,132.57,3.40601208]
[1765070185523,64.28,132.62,132.58,3.08]
[1765070187217,64.28,132.62,132.59,3.08]
[1765070192523,6.7837,132.65,132.59,3.08]
[1765070192825,73.84625455,132.65,132.61,0.05253708]
[1765070199031,71.0437,132.65,132.61,0.05253708]
[1765070199230,2.80255455,132.64,132.61,0.05253708]
[1765070200725,2.80255455,132.62,132.61,0.05253708]
[1765070203535,9.58785455,132.62,132.57,3.08]
[1765070203738,64.26,132.61,132.57,3.08]
[1765070204435,0.05325187,132.6,132.58,0.04770006]
[1765070205134,2.85580642,132.6,132.58,0.04770006]
[1765070208342,2.85580642,132.6,132.54,14.02527885]
[1765070208533,2.80255455,132.58,132.54,3.35]
[1765070209335,2.80255455,132.58,132.55,0.04864232]
[1765070209542,0.05714985,132.57,132.55,0.04864232]
[1765070209739,0.05714985,132.57,132.55,3.39864232]
[1765070210142,0.05714985,132.57,132.55,0.04864232]
[1765070210338,0.05714985,132.57,132.55,3.39864232]
[1765070211337,0.05714985,132.57,132.55,0.04864232]
[1765070215447,0.05714985,132.57,132.55,3.25864232]
[1765070216045,0.05714985,132.57,132.55,0.04864232]
[1765070216344,0.05714985,132.57,132.55,3.25864232]
[1765070216740,0.05714985,132.57,132.55,0.04864232]
[1765070217849,0.05714985,132.57,132.55,3.25864232]
[1765070234458,64.26,132.61,132.56,3.21]
[1765070235557,0.04380208,132.6,132.56,3.21]
[1765070236256,0.04380208,132.6,132.56,9.9978]
[1765070236457,0.04380208,132.6,132.57,3.21]
[1765070239462,0.04380208,132.6,132.58,3.07]
[1765070239661,0.04380208,132.6,132.58,3.12159206]
[1765070241062,0.04380208,132.6,132.59,3.07]
[1765070244657,4.38003954,132.65,132.59,3.07]
[1765070244969,64.26,132.66,132.59,3.07]
[1765070245169,64.26,132.66,132.59,9.8563]
[1765070245364,64.26,132.66,132.6,3.07]
[1765070245665,64.26,132.66,132.62,3.12356532]
[1765070257381,11.16173954,132.69,132.62,3.12356532]
[1765070257983,11.16173954,132.69,132.62,9.90806532]
[1765070258180,11.16173954,132.69,132.63,3.07]
[1765070258382,11.16173954,132.69,132.65,0.05722276]
[1765070271898,11.16173954,132.69,132.65,3.37722276]
[1765070272197,11.16173954,132.69,132.65,0.05722276]
[1765070274398,11.16173954,132.69,132.65,3.37722276]
[1765070280608,6.7817,132.69,132.65,0.05722276]
[1765070281206,6.7822,132.68,132.65,0.05722276]
[1765070281507,64.22,132.67,132.65,0.05722276]
[1765070281710,4.38003954,132.66,132.65,0.05722276]
[1765070281908,4.38003954,132.64,132.59,3.18]
[1765070282200,169.7586,132.63,132.57,3.18]
[1765070282801,0.05494672,132.61,132.59,3.23323089]
[1765070319350,0.05494672,132.61,132.59,17.171251]
[1765070319556,0.05494672,132.61,132.6,3.27]
[1765070323263,0.00494672,132.61,132.6,3.27]
[1765070323449,2.80223925,132.66,132.61,3.27]
[1765070324561,2.80223925,132.66,132.63,3.27]
[1765070328058,73.82483925,132.67,132.63,3.27]
[1765070329064,2.80223925,132.65,132.62,3.13583003]
[1765070335666,71.0226,132.67,132.62,3.13583003]
[1765070335966,2.80223925,132.66,132.62,3.13583003]
[1765070346574,71.0226,132.67,132.62,3.13583003]
[1765070359391,6.7826,132.67,132.62,3.13583003]
[1765070359992,207.47765848,132.69,132.62,17.07385014]
[1765070360286,207.47765848,132.69,132.63,3.09]
[1765070360493,207.47765848,132.69,132.66,3.09]
[1765070360788,6.7817,132.69,132.66,3.09]
[1765070361885,6.7805,132.71,132.66,3.09]
[1765070362985,10.89293787,132.74,132.67,3.09]
[1765070363287,10.89293787,132.74,132.7,3.09]
[1765070367589,15.26879366,132.74,132.69,3.14312723]
[1765070368195,64.22,132.73,132.69,3.14312723]
[1765070380494,64.22,132.73,132.7,3.09]
[1765070386502,64.22,132.73,132.69,3.14312723]
[1765070389507,64.22,132.73,132.69,0.05312723]
[1765070389914,64.22,132.73,132.69,3.41312723]
[1765070393305,4.37585579,132.72,132.69,0.05312723]
[1765070393512,4.37585579,132.7,132.69,0.05312723]
[1765070393703,68.55585579,132.7,132.64,3.15]
[1765070394703,0.05540327,132.68,132.66,0.05797066]
[1765070400915,0.05540327,132.68,132.66,3.20797066]
[1765070404315,4.11373787,132.74,132.68,3.15]
[1765070404817,8.48959366,132.74,132.68,3.15]
[1765070405120,15.26879366,132.74,132.68,3.15]
[1765070405414,15.26879366,132.74,132.7,0.05198577]
[1765070406014,6.7799,132.73,132.7,0.05198577]
[1765070406318,2.79827791,132.71,132.7,0.05198577]
[1765070417927,108.27447791,132.71,132.66,9.32051516]
[1765070418128,2.79827791,132.69,132.65,12.41051516]
[1765070418424,66.99827791,132.69,132.66,3.09]
[1765070418927,67.05026368,132.69,132.66,3.13907795]
[1765070419525,64.25198577,132.69,132.66,3.13907795]
[1765070419932,109.56733787,132.74,132.68,3.09]
[1765070419933,4.11373787,132.74,132.68,3.09]
[1765070420226,4.11373787,132.74,132.7,3.09]
[1765070420429,6.91201578,132.74,132.7,3.09]
[1765070420930,6.91201578,132.74,132.71,3.13909291]
[1765070423927,6.91201578,132.74,132.71,0.04909291]
[1765070424932,6.91201578,132.74,132.71,3.13909291]
[1765070426233,6.91201578,132.74,132.71,0.04909291]
[1765070431842,13.69121578,132.74,132.71,0.04909291]
[1765070432036,2.79827791,132.72,132.71,0.04909291]
[1765070436232,67.01827791,132.72,132.71,0.04909291]
[1765070436436,67.01827791,132.72,132.67,12.41051516]
[1765070436743,2.79827791,132.7,132.67,3.09]
[1765070436947,2.79827791,132.7,132.66,12.41051516]
[1765070437133,67.01827791,132.72,132.67,9.32051516]
[1765070437445,0.04909291,132.71,132.68,3.13888084]
[1765070439133,0.04909291,132.71,132.69,3.09]
[1765070446450,0.04909291,132.71,132.68,12.459396]
[1765070447052,0.04909291,132.71,132.69,3.09]
[1765070461762,0.04909291,132.71,132.68,12.619396]
[1765070461971,0.04909291,132.71,132.68,3.29888084]
[1765070464961,0.04909291,132.71,132.68,12.619396]
[1765070465162,0.04909291,132.71,132.69,3.25]
[1765070466671,0.04909291,132.71,132.7,3.25]
[1765070471273,0.04909291,132.71,132.7,12.57051516]
[1765070471478,0.04909291,132.71,132.7,3.25]
[1765070473371,0.04909291,132.71,132.7,12.59451673]
[1765070476185,0.04909291,132.71,132.7,3.25]
[1765070482585,0.04909291,132.71,132.7,12.59451673]
[1765070511404,0.04909291,132.71,132.7,3.25]
[1765070516593,0.04909291,132.71,132.7,12.60105525]
[1765070516903,4.11373787,132.74,132.71,3.25]
[1765070517106,4.37131263,132.8,132.74,3.25]
[1765070517307,4.37131263,132.8,132.75,3.25]
[1765070517701,11.14821263,132.78,132.76,3.30593674]
[1765070517902,174.00991263,132.78,132.73,12.59128657]
[1765070518103,4.37131263,132.76,132.73,3.25]
[1765070518910,109.85767907,132.76,132.73,0.05652554]
[1765070519405,4.37131263,132.74,132.73,0.05652554]
[1765070520108,4.37131263,132.74,132.73,3.30652554]
[1765070521508,4.37131263,132.74,132.73,0.05652554]
[1765070522808,4.37131263,132.74,132.73,3.30652554]
[1765070523013,68.59131263,132.74,132.73,3.30652554]
[1765070526413,67.01703881,132.74,132.73,3.30652554]
[1765070526913,64.22,132.74,132.73,3.30652554]
[1765070527112,67.01703881,132.74,132.73,3.30652554]
[1765070529821,67.01703881,132.74,132.73,0.05652554]
[1765070533719,67.01703881,132.74,132.71,12.59128657]
[1765070533720,6.7794,132.73,132.71,9.34128657]
[1765070534016,2.79703881,132.72,132.7,12.59128657]
[1765070534214,64.22,132.71,132.7,9.34128657]
[1765070534408,64.22,132.71,132.68,12.59128657]
[1765070534603,2.79703881,132.69,132.68,12.59128657]
[1765070536116,2.79703881,132.69,132.68,9.34128657]
[1765070536423,2.79703881,132.69,132.67,9.39843363]
[1765070536625,64.24,132.68,132.63,17.18802011]
[1765070536913,2.79703881,132.66,132.63,17.18802011]
[1765070537111,2.79703881,132.66,132.64,3.25]
[1765070537112,64.24,132.65,132.64,3.25]
[1765070537910,0.05158256,132.66,132.64,3.25]
[1765070561837,2.79703881,132.69,132.64,3.25]
[1765070562942,0.055706,132.68,132.64,3.25]
[1765070566047,0.055706,132.68,132.65,3.2]
[1765070566651,0.055706,132.68,132.66,3.2]
[1765070566855,0.055706,132.68,132.66,3.2516948]
[1765070569349,0.055706,132.68,132.66,12.57746936]
[1765070569550,0.055706,132.68,132.67,3.35]
[1765070576261,0.055706,132.68,132.67,12.67577456]
[1765070579860,0.055706,132.68,132.66,0.0516948]
[1765070579861,0.055706,132.68,132.66,9.37746936]
[1765070580055,0.055706,132.68,132.66,12.67746936]
[1765070580663,0.055706,132.68,132.67,3.3]
[1765070581260,6.838006,132.68,132.66,9.37746936]
[1765070581467,108.30403881,132.67,132.65,7.07650989]
[1765070581673,67.03703881,132.66,132.63,3.3]
[1765070581857,2.79703881,132.64,132.63,3.3]
[1765070583868,2.79703881,132.64,132.62,3.3529739]
[1765070588369,6.83346418,132.65,132.62,3.3529739]
[1765070596374,0.04996418,132.65,132.62,3.3529739]
[1765070596668,64.24,132.64,132.62,3.3529739]
[1765070598363,64.24,132.64,132.62,0.0529739]
[1765070599775,64.24,132.64,132.62,3.3429739]
[1765070607585,64.30996418,132.65,132.62,3.3429739]
[1765070611596,64.30996418,132.65,132.63,3.29]
[1765070615706,0.04996418,132.65,132.63,3.29]
[1765070616103,0.04996418,132.65,132.64,3.29]
[1765070622309,0.04996418,132.65,132.64,12.63020999]
[1765070624300,0.04996418,132.65,132.64,3.29]
[1765070624501,0.04996418,132.65,132.64,12.63020999]
[1765070630416,0.04996418,132.65,132.64,3.29]
[1765070630720,0.04996418,132.65,132.64,17.22802011]
[1765070632513,0.04996418,132.65,132.64,3.29]
[1765070632920,0.04996418,132.65,132.64,17.22802011]
[1765070633118,0.04996418,132.65,132.64,3.29]
[1765070640825,6.7817,132.69,132.64,3.29]
[1765070641020,6.7817,132.69,132.66,3.28]
[1765070642031,6.83840116,132.69,132.66,3.33475845]
[1765070647235,6.83840116,132.69,132.66,12.7105455]
[1765070648337,2.79944361,132.67,132.66,12.7105455]
[1765070663849,2.79944361,132.67,132.66,3.33475845]
[1765070664034,9.63784477,132.69,132.66,3.33475845]
[1765070664234,9.63784477,132.69,132.67,9.37185453]
[1765070665946,6.83840116,132.69,132.67,12.66185453]
[1765070666141,9.63784477,132.69,132.67,12.66185453]
[1765070670144,9.63784477,132.69,132.67,3.29]
[1765070686051,9.63784477,132.69,132.67,12.66185453]
[1765070687445,0.05670116,132.69,132.68,3.34]
[1765070687651,64.27670116,132.69,132.68,12.71185453]
[1765070696068,64.27670116,132.69,132.67,9.37185453]
[1765070696257,2.79944361,132.68,132.66,0.05475845]
[1765070696766,115.08034361,132.68,132.66,0.05475845]
[1765070696964,108.29814361,132.68,132.63,9.37185453]
[1765070697166,2.79944361,132.64,132.63,9.37185453]
[1765070697371,67.01944361,132.64,132.63,9.37185453]
[1765070701176,67.01944361,132.64,132.62,12.58848001]
[1765070701665,67.01944361,132.64,132.62,0.05662548]
[1765070702472,73.80384361,132.64,132.62,0.05662548]
[1765070703069,6.7855,132.61,132.58,12.53185453]
[1765070703279,67.01944361,132.6,132.58,9.37185453]
[1765070703571,67.01944361,132.6,132.57,9.37185453]
[1765070704172,179.4229837,132.6,132.57,0.05164828]
[1765070704370,2.79944361,132.58,132.57,0.05164828]
[1765070710381,11.16784688,132.59,132.57,0.05164828]
[1765070710875,116.74034688,132.59,132.57,0.05164828]
[1765070719789,64.26,132.58,132.57,0.05164828]
[1765070729387,6.787,132.59,132.57,3.15164828]
[1765070729594,64.28,132.58,132.57,3.15164828]
[1765070737801,64.28,132.58,132.57,0.05164828]
[1765070737989,105.5858,132.57,132.53,3.1]
[1765070738185,109.97454688,132.56,132.52,3.1]
[1765070738391,64.28,132.55,132.52,3.1]
[1765070738695,105.6101,132.54,132.5,3.1]
[1765070738895,109.99094688,132.54,132.51,0.050328]
[1765070739098,0.04959599,132.53,132.51,0.050328]
[1765070739300,64.28,132.52,132.51,0.050328]
[1765070741295,0.04959599,132.53,132.51,3.150328]
[1765070741497,64.3,132.52,132.51,3.150328]
[1765070743704,68.68084688,132.52,132.51,0.050328]
[1765070745599,75.47094688,132.52,132.51,0.050328]
[1765070746008,181.09824688,132.52,132.46,12.47185453]
[1765070746399,181.09824688,132.52,132.46,9.37185453]
[1765070747105,0.05115425,132.5,132.48,0.05749568]
[1765070747402,64.34,132.49,132.48,0.05749568]
[1765070749198,71.1317,132.49,132.48,0.05749568]
[1765070750217,0.05115425,132.5,132.48,0.05749568]
[1765070750500,64.34,132.49,132.48,0.05749568]
[1765070751805,68.72084688,132.49,132.48,0.05749568]
[1765070761498,6.7931,132.47,132.39,3.07]
[1765070761698,64.36,132.46,132.39,3.07]
[1765070762099,71.1537,132.46,132.39,3.07]
[1765070762512,71.1537,132.46,132.42,3.07]
[1765070762513,0.0506882,132.44,132.42,3.07]
[1765070762812,64.36,132.43,132.42,3.07]
[1765070771224,0.0506882,132.44,132.42,3.07]
[1765070782736,0.0506882,132.44,132.42,9.865]
[1765070783036,0.0506882,132.44,132.43,3.17]
[1765070785938,0.0506882,132.44,132.43,12.55299299]
[1765070786330,2.80925429,132.49,132.44,3.17]
[1765070786529,2.80925429,132.47,132.45,3.17]
[1765070787337,2.86333638,132.47,132.45,3.21771379]
[1765070788238,0.05408209,132.47,132.45,3.21771379]
[1765070791842,0.05408209,132.47,132.45,12.60353958]
[1765070792038,0.05408209,132.47,132.46,3.17]
[1765070796143,0.05408209,132.47,132.46,12.55582579]
[1765070797241,0.05408209,132.47,132.46,3.17]
[1765070798340,0.05408209,132.47,132.46,12.55582579]
[1765070809361,2.80925429,132.5,132.47,3.19]
[1765070809557,64.36,132.51,132.49,3.19]
[1765070810256,64.36,132.51,132.49,3.24808715]
[1765070810558,64.41719265,132.51,132.49,3.24808715]
[1765070810758,64.41719265,132.51,132.5,3.19]
[1765070810959,0.05719265,132.51,132.5,3.19]
[1765070818659,2.80925429,132.54,132.51,3.16]
[1765070819673,2.86678967,132.54,132.51,3.16]
[1765070824374,0.05753538,132.54,132.51,3.16]
[1765070824675,0.05753538,132.54,132.51,12.54582579]
[1765070824973,0.05753538,132.54,132.52,3.16]
[1765070825160,0.05753538,132.54,132.52,3.21066659]
[1765070826879,0.05753538,132.54,132.52,12.59649238]
[1765070827069,0.05753538,132.54,132.53,3.16]
[1765070827269,64.34,132.56,132.53,3.16]
[1765070828270,64.39033613,132.56,132.53,3.16]